[Event "*** Titled Tuesday 3|2 Blitz"]
[Site "Chess.com"]
[Date "2016.03.01"]
[Round "5"]
[White "LuckyTiger"]
[Black "ChessTrener"]
[Result "0-1"]
[WhiteElo "2571"]
[BlackElo "2583"]
[TimeControl "180+2"]
[EndTime "12:32:43 PST"]
[Termination "ChessTrener won by resignation"]

1. e4 {[%clk 0:03:01.9]} 1... c5 {[%clk 0:02:59.7]} 2. c3 {[%clk 0:03:02.8]}
2... d5 {[%clk 0:02:59.9]} 3. exd5 {[%clk 0:03:03.9]} 3... Qxd5 {[%clk
0:02:58.9]} 4. d4 {[%clk 0:03:05.2]} 4... Nf6 {[%clk 0:03:00.4]} 5. Nf3 {[%clk
0:03:06.7]} 5... g6 {[%clk 0:02:57.7]} 6. Na3 {[%clk 0:03:03.7]} 6... Bg7 {[%clk
0:02:54.6]} 7. Bc4 {[%clk 0:03:00.1]} 7... Qe4+ {[%clk 0:02:43]} 8. Be3 {[%clk
0:02:53.7]} 8... O-O {[%clk 0:02:43.7]} 9. O-O {[%clk 0:02:54.4]} 9... cxd4
{[%clk 0:02:42.4]} 10. Bxd4 {[%clk 0:02:37]} 10... Nc6 {[%clk 0:02:38.8]} 11.
Re1 {[%clk 0:02:37.4]} 11... Qf5 {[%clk 0:02:38.9]} 12. Be3 {[%clk 0:02:19]}
12... Ng4 {[%clk 0:02:35.4]} 13. Bg5 {[%clk 0:02:00.4]} 13... Nge5 {[%clk
0:02:26.5]} 14. Nxe5 {[%clk 0:01:55]} 14... Qxg5 {[%clk 0:02:27.3]} 15. Nxc6
{[%clk 0:01:29.8]} 15... bxc6 {[%clk 0:02:28.3]} 16. Qf3 {[%clk 0:01:29.6]}
16... Rb8 {[%clk 0:02:24.8]} 17. Bb3 {[%clk 0:01:27.7]} 17... c5 {[%clk
0:02:25.9]} 18. Nc4 {[%clk 0:01:24.5]} 18... Bb7 {[%clk 0:02:22.3]} 19. Qg3
{[%clk 0:01:25.6]} 19... Qf6 {[%clk 0:02:19.5]} 20. Rad1 {[%clk 0:01:22.7]}
20... Bh6 {[%clk 0:02:13.4]} 21. Qe5 {[%clk 0:01:09.2]} 21... Qc6 {[%clk
0:02:10.2]} 22. f3 {[%clk 0:01:10.4]} 22... e6 {[%clk 0:02:09.1]} 23. Rd6 {[%clk
0:01:05.5]} 23... Qc8 {[%clk 0:02:05.1]} 24. Na5 {[%clk 0:00:27]} 24... Qc7
{[%clk 0:01:56.7]} 25. Nxb7 {[%clk 0:00:14.7]} 25... Rxb7 {[%clk 0:01:57.6]} 26.
Bc4 {[%clk 0:00:06.2]} 26... Bg7 {[%clk 0:01:53.9]} 27. Qf4 {[%clk 0:00:04.8]}
27... Rxb2 {[%clk 0:01:49.4]} 28. Red1 {[%clk 0:00:03.7]} 28... Bxc3 {[%clk
0:01:46.5]} 29. Kh1 {[%clk 0:00:03.4]} 29... Qb8 {[%clk 0:01:42.3]} 30. Qe4
{[%clk 0:00:02.8]} 30... Bd4 {[%clk 0:01:37.7]} 31. Rd7 {[%clk 0:00:03.7]} 31...
Rd8 {[%clk 0:01:32.7]} 32. Rxd8+ {[%clk 0:00:04.8]} 32... Qxd8 {[%clk
0:01:32.8]} 33. h3 {[%clk 0:00:06.3]} 33... Qg5 {[%clk 0:01:27.6]} 34. Qg4
{[%clk 0:00:07.1]} 34... Qe3 {[%clk 0:01:23.7]} 35. Qg3 {[%clk 0:00:08.5]} 35...
Rc2 {[%clk 0:01:19.4]} 36. Qe1 {[%clk 0:00:09.9]} 36... Qxe1+ {[%clk 0:01:19.6]}
37. Rxe1 {[%clk 0:00:11.8]} 0-1

[Event "*** Titled Tuesday 3|2 Blitz"]
[Site "Chess.com"]
[Date "2016.03.01"]
[Round "5"]
[White "evgenyermolaev"]
[Black "Alexander_Donchenko"]
[Result "0-1"]
[WhiteElo "2054"]
[BlackElo "2595"]
[TimeControl "180+2"]
[EndTime "12:32:45 PST"]
[Termination "Alexander_Donchenko won by resignation"]

1. e4 {[%clk 0:02:51.2]} 1... c6 {[%clk 0:03:00.6]} 2. Nf3 {[%clk 0:02:51.6]}
2... d5 {[%clk 0:03:02.5]} 3. Nc3 {[%clk 0:02:53.5]} 3... Nf6 {[%clk 0:03:03.8]}
4. e5 {[%clk 0:02:54.2]} 4... Ne4 {[%clk 0:03:05.2]} 5. d4 {[%clk 0:02:48.2]}
5... Nxc3 {[%clk 0:03:05.4]} 6. bxc3 {[%clk 0:02:49.2]} 6... Bg4 {[%clk
0:03:07.3]} 7. h3 {[%clk 0:02:47.6]} 7... Bxf3 {[%clk 0:03:07.9]} 8. Qxf3 {[%clk
0:02:48.5]} 8... e6 {[%clk 0:03:09.8]} 9. g4 {[%clk 0:02:41.1]} 9... Be7 {[%clk
0:03:10.2]} 10. Bd3 {[%clk 0:02:37.9]} 10... Qc7 {[%clk 0:03:10.2]} 11. h4
{[%clk 0:02:28.1]} 11... c5 {[%clk 0:03:10.9]} 12. Bd2 {[%clk 0:02:29.1]} 12...
c4 {[%clk 0:03:11.2]} 13. Bf1 {[%clk 0:02:23.4]} 13... Nc6 {[%clk 0:03:11.8]}
14. g5 {[%clk 0:02:19.3]} 14... b5 {[%clk 0:03:06.9]} 15. h5 {[%clk 0:02:13.4]}
15... Rf8 {[%clk 0:03:03.7]} 16. a3 {[%clk 0:02:12.1]} 16... a5 {[%clk
0:03:00.9]} 17. Bh3 {[%clk 0:02:08.3]} 17... g6 {[%clk 0:02:53.4]} 18. Bg4
{[%clk 0:01:52.5]} 18... Rb8 {[%clk 0:02:37.3]} 19. hxg6 {[%clk 0:01:51.7]}
19... hxg6 {[%clk 0:02:37.2]} 20. Kf1 {[%clk 0:01:25.6]} 20... b4 {[%clk
0:02:34.8]} 21. axb4 {[%clk 0:01:26.2]} 21... axb4 {[%clk 0:02:35.9]} 22. Kg2
{[%clk 0:01:23.9]} 22... b3 {[%clk 0:02:33.9]} 23. cxb3 {[%clk 0:01:13.3]} 23...
cxb3 {[%clk 0:02:34.8]} 24. Rhb1 {[%clk 0:01:07.3]} 24... Na5 {[%clk 0:02:28.7]}
25. Qd1 {[%clk 0:00:50.8]} 25... Kd7 {[%clk 0:02:20.8]} 26. Rxa5 {[%clk
0:00:45.5]} 26... Qxa5 {[%clk 0:02:20.2]} 27. Rxb3 {[%clk 0:00:46.5]} 27... Rfc8
{[%clk 0:02:11.1]} 28. c4 {[%clk 0:00:45.1]} 28... Qa2 {[%clk 0:02:03.9]} 29.
Rxb8 {[%clk 0:00:41.4]} 29... Rxb8 {[%clk 0:02:05.8]} 30. cxd5 {[%clk
0:00:18.4]} 30... Qxd5+ {[%clk 0:02:06]} 31. Bf3 {[%clk 0:00:19.8]} 31... Qxd4
{[%clk 0:02:04.4]} 32. Qc2 {[%clk 0:00:16.4]} 32... Ke8 {[%clk 0:02:00.7]} 33.
Be3 {[%clk 0:00:11.4]} 33... Qxe5 {[%clk 0:01:59.4]} 34. Qa4+ {[%clk 0:00:10.9]}
34... Kf8 {[%clk 0:01:58.6]} 35. Bf4 {[%clk 0:00:12.3]} 35... Qb5 {[%clk
0:01:55.6]} 36. Qd4 {[%clk 0:00:12.4]} 36... Qb2 {[%clk 0:01:55.3]} 37. Qd7
{[%clk 0:00:04.8]} 37... Rd8 {[%clk 0:01:54.1]} 38. Qa7 {[%clk 0:00:04.8]} 38...
Qb5 {[%clk 0:01:51.3]} 39. Qe3 {[%clk 0:00:04.7]} 39... Qc4 {[%clk 0:01:46.8]}
40. Qe5 {[%clk 0:00:05.4]} 40... Qd4 {[%clk 0:01:46.8]} 41. Qb5 {[%clk
0:00:05.9]} 41... Qxf4 {[%clk 0:01:46.7]} 0-1

[Event "*** Titled Tuesday 3|2 Blitz"]
[Site "Chess.com"]
[Date "2016.03.01"]
[Round "5"]
[White "FairChess_on_YouTube"]
[Black "AndroQueen"]
[Result "1-0"]
[WhiteElo "2742"]
[BlackElo "2553"]
[TimeControl "180+2"]
[EndTime "12:32:48 PST"]
[Termination "FairChess_on_YouTube won by resignation"]

1. d4 {[%clk 0:03:01.9]} 1... Nf6 {[%clk 0:03:00.4]} 2. c4 {[%clk 0:03:01.9]}
2... e6 {[%clk 0:03:01]} 3. Nf3 {[%clk 0:03:02.8]} 3... d5 {[%clk 0:03:00.7]} 4.
Bg5 {[%clk 0:03:02.1]} 4... dxc4 {[%clk 0:03:00.7]} 5. Qa4+ {[%clk 0:02:53.6]}
5... Nbd7 {[%clk 0:02:53.2]} 6. e3 {[%clk 0:02:52]} 6... a6 {[%clk 0:02:38.8]}
7. Qxc4 {[%clk 0:02:50.6]} 7... b5 {[%clk 0:02:37.2]} 8. Qc6 {[%clk 0:02:51]}
8... Rb8 {[%clk 0:02:30.8]} 9. Bxf6 {[%clk 0:02:50.1]} 9... gxf6 {[%clk
0:02:28.7]} 10. Nbd2 {[%clk 0:02:50.8]} 10... Bb7 {[%clk 0:02:27.9]} 11. Qc2
{[%clk 0:02:51.8]} 11... c5 {[%clk 0:02:27.3]} 12. Be2 {[%clk 0:02:47.3]} 12...
Rc8 {[%clk 0:02:23.7]} 13. Qd3 {[%clk 0:02:42.2]} 13... cxd4 {[%clk 0:02:15.6]}
14. exd4 {[%clk 0:02:43.1]} 14... Nb6 {[%clk 0:02:13]} 15. O-O {[%clk
0:02:29.2]} 15... Nd5 {[%clk 0:02:10.5]} 16. g3 {[%clk 0:02:29.9]} 16... h5
{[%clk 0:02:05]} 17. Rfc1 {[%clk 0:02:16.2]} 17... h4 {[%clk 0:01:59.2]} 18.
Rxc8 {[%clk 0:02:16.7]} 18... Qxc8 {[%clk 0:01:59.2]} 19. Ne4 {[%clk 0:02:10.4]}
19... f5 {[%clk 0:01:51.4]} 20. Neg5 {[%clk 0:02:05.4]} 20... hxg3 {[%clk
0:01:49.4]} 21. hxg3 {[%clk 0:02:06.2]} 21... f6 {[%clk 0:01:42]} 22. Nxe6
{[%clk 0:01:45.4]} 22... Qxe6 {[%clk 0:01:42.1]} 23. Bf1 {[%clk 0:01:46.1]}
23... Be7 {[%clk 0:01:36.4]} 24. Bg2 {[%clk 0:01:42.9]} 24... f4 {[%clk
0:01:25.4]} 25. Re1 {[%clk 0:01:42.4]} 25... Qg4 {[%clk 0:01:19.6]} 26. Qe4
{[%clk 0:01:29.5]} 26... Rg8 {[%clk 0:00:45.5]} 27. Nh2 {[%clk 0:00:59.6]} 27...
Qg6 {[%clk 0:00:44.6]} 28. g4 {[%clk 0:00:35]} 28... Qxe4 {[%clk 0:00:44.3]} 29.
Bxe4 {[%clk 0:00:36.9]} 29... Kd8 {[%clk 0:00:42.8]} 30. Bf5 {[%clk 0:00:33.7]}
30... Bc8 {[%clk 0:00:38.7]} 31. Be4 {[%clk 0:00:25.4]} 31... Bxg4 {[%clk
0:00:32.5]} 1-0

[Event "*** Titled Tuesday 3|2 Blitz"]
[Site "Chess.com"]
[Date "2016.03.01"]
[Round "5"]
[White "MattyDPerrine"]
[Black "Iwannabetheguy"]
[Result "1/2-1/2"]
[WhiteElo "2250"]
[BlackElo "2024"]
[TimeControl "180+2"]
[EndTime "12:33:47 PST"]
[Termination "Game drawn by repetition"]

1. d4 {[%clk 0:02:59]} 1... Nf6 {[%clk 0:02:59.9]} 2. c4 {[%clk 0:02:58.9]} 2...
c5 {[%clk 0:03:01.2]} 3. Nf3 {[%clk 0:02:58.5]} 3... cxd4 {[%clk 0:03:00.5]} 4.
Nxd4 {[%clk 0:03:00.4]} 4... e5 {[%clk 0:03:01.9]} 5. Nb5 {[%clk 0:03:01.3]}
5... d6 {[%clk 0:03:01]} 6. N1c3 {[%clk 0:02:41.2]} 6... a6 {[%clk 0:03:01.8]}
7. Na3 {[%clk 0:02:37.3]} 7... Be6 {[%clk 0:03:02.4]} 8. Bg5 {[%clk 0:02:35.9]}
8... Nc6 {[%clk 0:02:53.4]} 9. e3 {[%clk 0:02:32.3]} 9... Be7 {[%clk 0:02:54.1]}
10. Be2 {[%clk 0:02:23.2]} 10... O-O {[%clk 0:02:54.6]} 11. O-O {[%clk
0:02:23.9]} 11... Rc8 {[%clk 0:02:53.2]} 12. Bf3 {[%clk 0:02:16.4]} 12... Nd7
{[%clk 0:02:48.6]} 13. Bxe7 {[%clk 0:02:10.7]} 13... Nxe7 {[%clk 0:02:49.6]} 14.
Bxb7 {[%clk 0:01:17.5]} 14... Rb8 {[%clk 0:02:36.8]} 15. Bxa6 {[%clk 0:01:18.5]}
15... Nc5 {[%clk 0:02:16.3]} 16. Bb5 {[%clk 0:01:16.2]} 16... f5 {[%clk
0:02:16.9]} 17. b4 {[%clk 0:01:15.1]} 17... Ne4 {[%clk 0:02:12.5]} 18. Nxe4
{[%clk 0:01:07.3]} 18... fxe4 {[%clk 0:02:13.1]} 19. Qc2 {[%clk 0:01:04.2]}
19... Nf5 {[%clk 0:01:53.1]} 20. Qxe4 {[%clk 0:00:47.9]} 20... Qg5 {[%clk
0:01:53.6]} 21. f4 {[%clk 0:00:45]} 21... Qh4 {[%clk 0:01:44]} 22. Nc2 {[%clk
0:00:20.9]} 22... Rf6 {[%clk 0:01:43.8]} 23. g3 {[%clk 0:00:22.2]} 23... Nxg3
{[%clk 0:01:35.5]} 24. hxg3 {[%clk 0:00:24.1]} 24... Qxg3+ {[%clk 0:01:36.7]}
25. Qg2 {[%clk 0:00:24.3]} 25... Qh4 {[%clk 0:01:37.8]} 26. f5 {[%clk
0:00:13.7]} 26... Bxf5 {[%clk 0:01:35.7]} 27. Ne1 {[%clk 0:00:14.8]} 27... Rg6
{[%clk 0:01:33]} 28. Rxf5 {[%clk 0:00:16.3]} 28... Rxg2+ {[%clk 0:01:32.2]} 29.
Nxg2 {[%clk 0:00:18.2]} 29... Qg4 {[%clk 0:01:19]} 30. Raf1 {[%clk 0:00:18]}
30... h5 {[%clk 0:01:18.3]} 31. Bc6 {[%clk 0:00:13.3]} 31... h4 {[%clk
0:01:14.9]} 32. Bd5+ {[%clk 0:00:14.6]} 32... Kh7 {[%clk 0:01:11.9]} 33. Kh2
{[%clk 0:00:09.8]} 33... Qg3+ {[%clk 0:01:08.4]} 34. Kh1 {[%clk 0:00:11.2]}
34... Qh3+ {[%clk 0:01:09.2]} 35. Kg1 {[%clk 0:00:12.6]} 35... Qg4 {[%clk
0:01:09.8]} 36. Kf2 {[%clk 0:00:10.6]} 36... Rxb4 {[%clk 0:01:06.3]} 37. Ke1
{[%clk 0:00:06.3]} 37... Rb1+ {[%clk 0:01:00.6]} 38. Kd2 {[%clk 0:00:07.7]}
38... Rb2+ {[%clk 0:01:00.6]} 39. Kc3 {[%clk 0:00:07.7]} 39... Rxg2 {[%clk
0:00:56.7]} 40. Bxg2 {[%clk 0:00:08.2]} 40... Qxg2 {[%clk 0:00:58.3]} 41. a4
{[%clk 0:00:07]} 41... Qe2 {[%clk 0:00:57.6]} 42. R5f3 {[%clk 0:00:06.7]} 42...
Qa2 {[%clk 0:00:57.3]} 43. Kb4 {[%clk 0:00:07.5]} 43... Qb2+ {[%clk 0:00:58.2]}
44. Ka5 {[%clk 0:00:08.4]} 44... Qc3+ {[%clk 0:00:58.7]} 45. Kb6 {[%clk
0:00:05.6]} 45... Qxc4 {[%clk 0:00:54.5]} 46. a5 {[%clk 0:00:06.1]} 46... Qc5+
{[%clk 0:00:56]} 47. Ka6 {[%clk 0:00:04.4]} 47... Qc6+ {[%clk 0:00:57]} 48. Ka7
{[%clk 0:00:05.4]} 48... Qc7+ {[%clk 0:00:58.6]} 49. Ka6 {[%clk 0:00:06.7]}
49... Qc6+ {[%clk 0:00:59.9]} 50. Ka7 {[%clk 0:00:08.3]} 50... Qc7+ {[%clk
0:01:01.2]} 51. Ka6 {[%clk 0:00:09.4]} 51... Qc6+ {[%clk 0:01:02.6]} 1/2-1/2

[Event "*** Titled Tuesday 3|2 Blitz"]
[Site "Chess.com"]
[Date "2016.03.01"]
[Round "5"]
[White "Rickstereo"]
[Black "maciek_92"]
[Result "0-1"]
[WhiteElo "2192"]
[BlackElo "2422"]
[TimeControl "180+2"]
[EndTime "12:34:07 PST"]
[Termination "maciek_92 won by checkmate"]

1. c4 {[%clk 0:03:01.9]} 1... e5 {[%clk 0:02:55]} 2. Nc3 {[%clk 0:03:01.3]} 2...
Nc6 {[%clk 0:02:54.5]} 3. Nf3 {[%clk 0:03:02.2]} 3... Nf6 {[%clk 0:02:50.1]} 4.
d4 {[%clk 0:03:03.2]} 4... exd4 {[%clk 0:02:52]} 5. Nxd4 {[%clk 0:02:59.1]} 5...
Bb4 {[%clk 0:02:50.9]} 6. Bg5 {[%clk 0:02:58]} 6... h6 {[%clk 0:02:49.8]} 7. Bh4
{[%clk 0:02:47.2]} 7... g5 {[%clk 0:02:49.9]} 8. Bg3 {[%clk 0:02:48]} 8... Ne4
{[%clk 0:02:50.1]} 9. Rc1 {[%clk 0:02:27.3]} 9... Qf6 {[%clk 0:02:49.7]} 10. e3
{[%clk 0:02:18.5]} 10... h5 {[%clk 0:02:36.8]} 11. Bd3 {[%clk 0:02:19.4]} 11...
Nxc3 {[%clk 0:02:34]} 12. bxc3 {[%clk 0:02:19.6]} 12... Ba3 {[%clk 0:02:35.2]}
13. Rb1 {[%clk 0:02:02.4]} 13... Nxd4 {[%clk 0:02:22.1]} 14. cxd4 {[%clk
0:01:59.7]} 14... Bd6 {[%clk 0:02:04.5]} 15. c5 {[%clk 0:01:51.6]} 15... Bxg3
{[%clk 0:02:02.4]} 16. hxg3 {[%clk 0:01:53.5]} 16... h4 {[%clk 0:02:00.9]} 17.
gxh4 {[%clk 0:01:06.4]} 17... gxh4 {[%clk 0:02:02.8]} 18. Qc2 {[%clk 0:01:00.2]}
18... c6 {[%clk 0:01:54.3]} 19. Bc4 {[%clk 0:00:55.3]} 19... d5 {[%clk
0:01:32.4]} 20. cxd6 {[%clk 0:00:55.7]} 20... Qxd6 {[%clk 0:01:32.1]} 21. Qe4+
{[%clk 0:00:52.9]} 21... Qe7 {[%clk 0:01:33.2]} 22. Qf4 {[%clk 0:00:48]} 22...
b6 {[%clk 0:00:59]} 23. Bb3 {[%clk 0:00:46.9]} 23... Bb7 {[%clk 0:00:52.4]} 24.
Rc1 {[%clk 0:00:38.3]} 24... a5 {[%clk 0:00:49.7]} 25. Rh3 {[%clk 0:00:30.1]}
25... a4 {[%clk 0:00:49.3]} 26. Bc4 {[%clk 0:00:29.6]} 26... Bc8 {[%clk
0:00:33.9]} 27. Rf3 {[%clk 0:00:29.9]} 27... Be6 {[%clk 0:00:35.4]} 28. Bxe6
{[%clk 0:00:24.9]} 28... Qxe6 {[%clk 0:00:37.3]} 29. Qg5 {[%clk 0:00:23.8]}
29... Ra5 {[%clk 0:00:33]} 30. Qg7 {[%clk 0:00:23.2]} 30... Rf8 {[%clk 0:00:34]}
31. Rf6 {[%clk 0:00:23.8]} 31... Qxa2 {[%clk 0:00:24.9]} 32. Rfxc6 {[%clk
0:00:24.6]} 32... Rf5 {[%clk 0:00:23]} 33. Rc8+ {[%clk 0:00:23]} 33... Kd7
{[%clk 0:00:24.4]} 34. R1c7+ {[%clk 0:00:23.1]} 34... Ke6 {[%clk 0:00:24.5]} 35.
Rc6+ {[%clk 0:00:22.3]} 35... Kd5 {[%clk 0:00:19.2]} 36. Qxf8 {[%clk 0:00:10.6]}
36... Qxf2+ {[%clk 0:00:20.2]} 37. Kd1 {[%clk 0:00:11.2]} 37... Qg1+ {[%clk
0:00:21.5]} 38. Kd2 {[%clk 0:00:09.7]} 38... Rf2+ {[%clk 0:00:23]} 39. Kc3
{[%clk 0:00:11]} 39... Qe1+ {[%clk 0:00:21.6]} 40. Kd3 {[%clk 0:00:06.8]} 40...
Qd2# {[%clk 0:00:23]} 0-1

[Event "*** Titled Tuesday 3|2 Blitz"]
[Site "Chess.com"]
[Date "2016.03.01"]
[Round "5"]
[White "spectralsoul"]
[Black "dretch"]
[Result "0-1"]
[WhiteElo "2572"]
[BlackElo "2518"]
[TimeControl "180+2"]
[EndTime "12:34:24 PST"]
[Termination "dretch won by resignation"]

1. c4 {[%clk 0:03:01.5]} 1... c6 {[%clk 0:02:54]} 2. Nf3 {[%clk 0:02:56.4]} 2...
d5 {[%clk 0:02:55.1]} 3. d4 {[%clk 0:02:57.2]} 3... Nf6 {[%clk 0:02:55.8]} 4.
Nc3 {[%clk 0:02:53.4]} 4... dxc4 {[%clk 0:02:56.9]} 5. a4 {[%clk 0:02:54.4]}
5... e6 {[%clk 0:02:57.6]} 6. e3 {[%clk 0:02:47.3]} 6... c5 {[%clk 0:02:58]} 7.
Bxc4 {[%clk 0:02:44.6]} 7... Nc6 {[%clk 0:02:59.2]} 8. O-O {[%clk 0:02:40.4]}
8... cxd4 {[%clk 0:03:00.3]} 9. exd4 {[%clk 0:02:42.3]} 9... Be7 {[%clk
0:03:01.3]} 10. Qe2 {[%clk 0:02:41.5]} 10... O-O {[%clk 0:03:02.4]} 11. Rd1
{[%clk 0:02:42.4]} 11... Nb4 {[%clk 0:03:03.4]} 12. Ne5 {[%clk 0:02:42.6]} 12...
Bd7 {[%clk 0:03:04.7]} 13. d5 {[%clk 0:02:33]} 13... exd5 {[%clk 0:03:06.6]} 14.
Nxd5 {[%clk 0:02:34.3]} 14... Nbxd5 {[%clk 0:03:07]} 15. Bxd5 {[%clk 0:02:35.5]}
15... Nxd5 {[%clk 0:03:08.2]} 16. Rxd5 {[%clk 0:02:36.5]} 16... Bg4 {[%clk
0:03:09.4]} 17. Qc4 {[%clk 0:01:59]} 17... Qxd5 {[%clk 0:03:05.4]} 18. Qxd5
{[%clk 0:01:58.2]} 18... Rad8 {[%clk 0:03:06.4]} 19. Qxd8 {[%clk 0:01:53.3]}
19... Rxd8 {[%clk 0:03:06.8]} 20. Be3 {[%clk 0:01:55.2]} 20... Rd1+ {[%clk
0:02:23.1]} 21. Rxd1 {[%clk 0:01:54.6]} 21... Bxd1 {[%clk 0:02:25]} 22. Bxa7
{[%clk 0:01:51.8]} 22... Bxa4 {[%clk 0:02:26.2]} 23. Bd4 {[%clk 0:01:47.7]}
23... f6 {[%clk 0:02:24.5]} 24. Nd3 {[%clk 0:01:43.3]} 24... Kf7 {[%clk
0:02:22.9]} 25. f3 {[%clk 0:01:43.1]} 25... Ke6 {[%clk 0:02:17.9]} 26. Kf2
{[%clk 0:01:39.7]} 26... Kd5 {[%clk 0:02:15.8]} 27. Ke3 {[%clk 0:01:40]} 27...
Kc4 {[%clk 0:02:13.9]} 28. Nf4 {[%clk 0:01:23.4]} 28... Bd7 {[%clk 0:01:52.1]}
29. Ne2 {[%clk 0:01:10.7]} 29... b5 {[%clk 0:01:50.3]} 30. g3 {[%clk 0:00:55.1]}
30... Bf5 {[%clk 0:01:44.1]} 31. Nc3 {[%clk 0:00:42.1]} 31... b4 {[%clk
0:01:39.6]} 32. Ne4 {[%clk 0:00:43.3]} 32... Kb3 {[%clk 0:01:32.5]} 33. Nc5+
{[%clk 0:00:37]} 33... Kc2 {[%clk 0:01:31.4]} 34. g4 {[%clk 0:00:37.1]} 34...
Bc8 {[%clk 0:01:28.7]} 35. h4 {[%clk 0:00:30.1]} 35... b3 {[%clk 0:00:55]} 36.
Nd3 {[%clk 0:00:22.8]} 36... Bd6 {[%clk 0:00:49.9]} 37. h5 {[%clk 0:00:21.3]}
37... f5 {[%clk 0:00:41.6]} 38. g5 {[%clk 0:00:19.3]} 38... Ba6 {[%clk
0:00:33.7]} 39. Ne5 {[%clk 0:00:19.1]} 39... Bb4 {[%clk 0:00:28.8]} 40. g6
{[%clk 0:00:12.2]} 40... Bd2+ {[%clk 0:00:26.1]} 41. Kf2 {[%clk 0:00:13.5]}
41... hxg6 {[%clk 0:00:26.5]} 42. hxg6 {[%clk 0:00:15.3]} 42... Bc1 {[%clk
0:00:26.2]} 43. Nc6 {[%clk 0:00:11.5]} 43... Bxb2 {[%clk 0:00:19.5]} 44. Nb4+
{[%clk 0:00:12.8]} 44... Kb1 {[%clk 0:00:20.5]} 45. Bxb2 {[%clk 0:00:13.3]}
45... Kxb2 {[%clk 0:00:22.1]} 46. Nxa6 {[%clk 0:00:15.2]} 46... Ka3 {[%clk
0:00:20.5]} 47. Nc7 {[%clk 0:00:09.6]} 47... b2 {[%clk 0:00:20.6]} 48. Nb5+
{[%clk 0:00:11]} 48... Kb4 {[%clk 0:00:19.6]} 49. Nd4 {[%clk 0:00:10.7]} 49...
b1=Q {[%clk 0:00:19.7]} 50. Nxf5 {[%clk 0:00:12.1]} 50... Qxf5 {[%clk
0:00:20.3]} 0-1

[Event "*** Titled Tuesday 3|2 Blitz"]
[Site "Chess.com"]
[Date "2016.03.01"]
[Round "5"]
[White "GianmarcoVaR"]
[Black "petrpalachev"]
[Result "1-0"]
[WhiteElo "2328"]
[BlackElo "2263"]
[TimeControl "180+2"]
[EndTime "12:34:28 PST"]
[Termination "GianmarcoVaR won by resignation"]

1. d4 {[%clk 0:02:11]} 1... Nf6 {[%clk 0:03:00.5]} 2. Nf3 {[%clk 0:02:11.5]}
2... d5 {[%clk 0:03:01.3]} 3. c4 {[%clk 0:02:11.8]} 3... e6 {[%clk 0:03:02.2]}
4. g3 {[%clk 0:02:11.9]} 4... Bb4+ {[%clk 0:03:02.1]} 5. Bd2 {[%clk 0:02:12.6]}
5... Be7 {[%clk 0:03:01.3]} 6. Bg2 {[%clk 0:02:12.8]} 6... O-O {[%clk 0:03:02]}
7. Qc2 {[%clk 0:02:13]} 7... Nbd7 {[%clk 0:03:02.6]} 8. O-O {[%clk 0:02:12.7]}
8... c6 {[%clk 0:03:03.5]} 9. Rd1 {[%clk 0:02:08]} 9... b6 {[%clk 0:03:02]} 10.
b3 {[%clk 0:02:08]} 10... Bb7 {[%clk 0:02:57.4]} 11. Nc3 {[%clk 0:02:07.6]}
11... Rc8 {[%clk 0:02:56.6]} 12. e4 {[%clk 0:02:02.3]} 12... dxe4 {[%clk
0:02:49.6]} 13. Nxe4 {[%clk 0:02:02.7]} 13... c5 {[%clk 0:02:49.5]} 14. Nxf6+
{[%clk 0:01:54.8]} 14... Nxf6 {[%clk 0:02:50.1]} 15. dxc5 {[%clk 0:01:51.6]}
15... Be4 {[%clk 0:02:47.3]} 16. Qb2 {[%clk 0:01:49.3]} 16... Bxc5 {[%clk
0:02:32.3]} 17. Bc3 {[%clk 0:01:47.7]} 17... Qe7 {[%clk 0:02:20.8]} 18. Qe2
{[%clk 0:01:06.6]} 18... Bb7 {[%clk 0:02:12.1]} 19. Ne5 {[%clk 0:01:06.8]} 19...
Bxg2 {[%clk 0:02:12.3]} 20. Kxg2 {[%clk 0:01:08.1]} 20... Qb7+ {[%clk
0:02:12.6]} 21. Qf3 {[%clk 0:01:08.4]} 21... Qxf3+ {[%clk 0:02:12.7]} 22. Kxf3
{[%clk 0:01:09.6]} 22... a5 {[%clk 0:02:08.4]} 23. g4 {[%clk 0:00:38.2]} 23...
Rfd8 {[%clk 0:02:00.1]} 24. g5 {[%clk 0:00:38]} 24... Ne8 {[%clk 0:01:59.1]} 25.
Nd7 {[%clk 0:00:25.3]} 25... Be7 {[%clk 0:01:02]} 26. Nxb6 {[%clk 0:00:24.4]}
26... Rxd1 {[%clk 0:01:02.8]} 27. Rxd1 {[%clk 0:00:24.6]} 27... Rc6 {[%clk
0:00:59.8]} 28. Bxa5 {[%clk 0:00:15.2]} 28... Bxg5 {[%clk 0:00:58.7]} 29. b4
{[%clk 0:00:15.5]} 29... f5 {[%clk 0:00:55.9]} 30. c5 {[%clk 0:00:16.3]} 30...
Nc7 {[%clk 0:00:54.5]} 31. Rd7 {[%clk 0:00:14.5]} 31... Nb5 {[%clk 0:00:49.8]}
32. Nc4 {[%clk 0:00:12.6]} 32... Bf6 {[%clk 0:00:47.3]} 33. Nd6 {[%clk
0:00:13.5]} 33... Nd4+ {[%clk 0:00:44.8]} 34. Ke3 {[%clk 0:00:12.7]} 34... e5
{[%clk 0:00:45.4]} 35. a4 {[%clk 0:00:11]} 35... h5 {[%clk 0:00:44.8]} 36. Kd3
{[%clk 0:00:11.4]} 36... e4+ {[%clk 0:00:45.3]} 37. Kc4 {[%clk 0:00:12.6]} 37...
Ne6 {[%clk 0:00:35.1]} 38. Nxf5 {[%clk 0:00:13.1]} 38... Rc8 {[%clk 0:00:26.5]}
39. Nd6 {[%clk 0:00:13.4]} 39... Rf8 {[%clk 0:00:21.2]} 40. Nxe4 {[%clk
0:00:13.9]} 40... Be5 {[%clk 0:00:22.4]} 41. Re7 {[%clk 0:00:14.9]} 41... Rf4
{[%clk 0:00:17.2]} 42. Rxe6 {[%clk 0:00:15.5]} 42... Rxe4+ {[%clk 0:00:18.7]}
43. Kd5 {[%clk 0:00:16.8]} 43... Rd4+ {[%clk 0:00:17.6]} 44. Kxe5 {[%clk
0:00:17.8]} 44... Rd2 {[%clk 0:00:19.5]} 45. c6 {[%clk 0:00:18.2]} 45... Rxf2
{[%clk 0:00:21]} 46. c7 {[%clk 0:00:19.2]} 46... Rc2 {[%clk 0:00:22.9]} 47. Re8+
{[%clk 0:00:19.7]} 47... Kh7 {[%clk 0:00:24.8]} 48. c8=Q {[%clk 0:00:20.2]}
48... Rxc8 {[%clk 0:00:26.7]} 49. Rxc8 {[%clk 0:00:21]} 49... h4 {[%clk
0:00:28.6]} 50. Kf5 {[%clk 0:00:21.9]} 50... h3 {[%clk 0:00:28.9]} 51. Kg5
{[%clk 0:00:22]} 51... g6 {[%clk 0:00:28.4]} 52. Rc7+ {[%clk 0:00:23.2]} 52...
Kg8 {[%clk 0:00:28.2]} 53. b5 {[%clk 0:00:24.5]} 53... Kf8 {[%clk 0:00:30.1]}
54. b6 {[%clk 0:00:26.4]} 1-0